[Event "*** SCC Grand Prix: Titled Tuesday Blitz"]
[Site "Chess.com"]
[Date "2020.07.21"]
[Round "9"]
[White "sergivila"]
[Black "FontVella8"]
[Result "1-0"]
[WhiteElo "2421"]
[BlackElo "2576"]
[TimeControl "180+1"]
[EndTime "11:49:20 PDT"]
[Termination "sergivila won by checkmate"]

1. e4 {[%clk 0:03:00.9]} 1... c6 {[%clk 0:02:58.7]} 2. d4 {[%clk 0:03:00.2]}
2... d5 {[%clk 0:02:57.2]} 3. e5 {[%clk 0:03:00.1]} 3... c5 {[%clk 0:02:57.7]}
4. dxc5 {[%clk 0:03:00]} 4... e6 {[%clk 0:02:58]} 5. a3 {[%clk 0:02:57.1]} 5...
Bxc5 {[%clk 0:02:58.1]} 6. b4 {[%clk 0:02:56.9]} 6... Bb6 {[%clk 0:02:58.3]} 7.
Nf3 {[%clk 0:02:56.7]} 7... Ne7 {[%clk 0:02:58.5]} 8. Bd3 {[%clk 0:02:56]} 8...
Ng6 {[%clk 0:02:58.7]} 9. O-O {[%clk 0:02:53.9]} 9... O-O {[%clk 0:02:57.8]} 10.
Bb2 {[%clk 0:02:51.7]} 10... Nf4 {[%clk 0:02:50.9]} 11. Re1 {[%clk 0:02:46.3]}
11... Nxd3 {[%clk 0:02:45.7]} 12. Qxd3 {[%clk 0:02:47.2]} 12... a5 {[%clk
0:02:44.2]} 13. Nbd2 {[%clk 0:02:24.9]} 13... Nc6 {[%clk 0:02:42.3]} 14. b5
{[%clk 0:02:22.2]} 14... Ne7 {[%clk 0:02:39.4]} 15. c4 {[%clk 0:02:18.1]} 15...
dxc4 {[%clk 0:02:32]} 16. Qxc4 {[%clk 0:02:19]} 16... Qd5 {[%clk 0:02:30.6]} 17.
Qe2 {[%clk 0:02:12.9]} 17... Bd7 {[%clk 0:02:17.2]} 18. a4 {[%clk 0:02:09.9]}
18... Ng6 {[%clk 0:02:14.6]} 19. g3 {[%clk 0:02:01]} 19... Rac8 {[%clk
0:02:11.7]} 20. Ne4 {[%clk 0:01:56.8]} 20... Qb3 {[%clk 0:01:57.3]} 21. Bd4
{[%clk 0:00:44]} 21... Bxd4 {[%clk 0:00:56.2]} 22. Nxd4 {[%clk 0:00:44.9]} 22...
Qb4 {[%clk 0:00:55.4]} 23. Nf3 {[%clk 0:00:39.3]} 23... Rc7 {[%clk 0:00:46.3]}
24. Nd6 {[%clk 0:00:34.4]} 24... b6 {[%clk 0:00:43.8]} 25. Reb1 {[%clk
0:00:29.7]} 25... Qg4 {[%clk 0:00:40]} 26. Qe3 {[%clk 0:00:20.6]} 26... Rc5
{[%clk 0:00:30.3]} 27. Rd1 {[%clk 0:00:19.3]} 27... f6 {[%clk 0:00:19]} 28. Rd4
{[%clk 0:00:18.8]} 28... Qh5 {[%clk 0:00:17.3]} 29. exf6 {[%clk 0:00:17.8]}
29... Rxf6 {[%clk 0:00:15.6]} 30. Nd2 {[%clk 0:00:17.3]} 30... Re5 {[%clk
0:00:14.4]} 31. Re4 {[%clk 0:00:16.7]} 31... Rd5 {[%clk 0:00:13.4]} 32. Re1
{[%clk 0:00:15.3]} 32... Rxd6 {[%clk 0:00:12.9]} 33. Nc4 {[%clk 0:00:15.2]}
33... Rd1 {[%clk 0:00:11.5]} 34. Nxb6 {[%clk 0:00:14.7]} 34... Rxe1+ {[%clk
0:00:11.7]} 35. Qxe1 {[%clk 0:00:14.9]} 35... Nf8 {[%clk 0:00:04.8]} 36. Rd4
{[%clk 0:00:14.1]} 36... Be8 {[%clk 0:00:04.6]} 37. Nc4 {[%clk 0:00:12.9]} 37...
Qc5 {[%clk 0:00:04.3]} 38. Re4 {[%clk 0:00:11.4]} 38... Bg6 {[%clk 0:00:04]} 39.
Rh4 {[%clk 0:00:10]} 39... Nd7 {[%clk 0:00:02.9]} 40. Ne3 {[%clk 0:00:09.8]}
40... e5 {[%clk 0:00:03.1]} 41. Qxa5 {[%clk 0:00:09.4]} 41... e4 {[%clk
0:00:02.3]} 42. Qd8+ {[%clk 0:00:09.1]} 42... Nf8 {[%clk 0:00:03]} 43. Rf4
{[%clk 0:00:08.4]} 43... Qc1+ {[%clk 0:00:03.2]} 44. Kg2 {[%clk 0:00:08.4]}
44... Rxf4 {[%clk 0:00:04]} 45. gxf4 {[%clk 0:00:08.8]} 45... Qc3 {[%clk
0:00:03.7]} 46. f5 {[%clk 0:00:09.2]} 46... Bf7 {[%clk 0:00:02.6]} 47. b6 {[%clk
0:00:08.6]} 47... Qb3 {[%clk 0:00:02]} 48. Qc7 {[%clk 0:00:08.2]} 48... Qxa4
{[%clk 0:00:02.1]} 49. b7 {[%clk 0:00:08.3]} 49... Nd7 {[%clk 0:00:01.4]} 50.
Qd8+ {[%clk 0:00:07]} 50... Nf8 {[%clk 0:00:01.6]} 51. b8=Q {[%clk 0:00:07.5]}
51... Qa5 {[%clk 0:00:02]} 52. Qxf8# {[%clk 0:00:07.4]} 1-0

[Event "*** SCC Grand Prix: Titled Tuesday Blitz"]
[Site "Chess.com"]
[Date "2020.07.21"]
[Round "9"]
[White "Mikasinski"]
[Black "VALPARAISO37"]
[Result "1-0"]
[WhiteElo "2434"]
[BlackElo "2283"]
[TimeControl "180+1"]
[EndTime "11:49:22 PDT"]
[Termination "Mikasinski won by resignation"]

1. e4 {[%clk 0:03:00.9]} 1... e5 {[%clk 0:02:57.3]} 2. Nf3 {[%clk 0:03:00.8]}
2... Nc6 {[%clk 0:02:54.2]} 3. Nc3 {[%clk 0:03:01.3]} 3... Nf6 {[%clk 0:02:53]}
4. Bb5 {[%clk 0:03:01.4]} 4... Bb4 {[%clk 0:02:51.3]} 5. O-O {[%clk 0:03:00.5]}
5... O-O {[%clk 0:02:47.8]} 6. d3 {[%clk 0:03:00.3]} 6... d6 {[%clk 0:02:44.9]}
7. Bg5 {[%clk 0:03:00.1]} 7... Bxc3 {[%clk 0:02:41.2]} 8. bxc3 {[%clk
0:03:00.3]} 8... Bd7 {[%clk 0:02:40.3]} 9. Re1 {[%clk 0:02:58.4]} 9... h6 {[%clk
0:02:38.1]} 10. Bh4 {[%clk 0:02:57.8]} 10... Re8 {[%clk 0:02:31.3]} 11. d4
{[%clk 0:02:56.5]} 11... a6 {[%clk 0:02:29.9]} 12. Bd3 {[%clk 0:02:53.9]} 12...
Bg4 {[%clk 0:02:27.1]} 13. h3 {[%clk 0:02:10.5]} 13... Bxf3 {[%clk 0:02:23.5]}
14. Qxf3 {[%clk 0:02:09.6]} 14... exd4 {[%clk 0:02:23.4]} 15. cxd4 {[%clk
0:02:08.2]} 15... Nxd4 {[%clk 0:02:23.2]} 16. Qg3 {[%clk 0:01:53]} 16... Kh8
{[%clk 0:01:40.2]} 17. f4 {[%clk 0:01:49.4]} 17... Nh5 {[%clk 0:01:36.8]} 18.
Qf2 {[%clk 0:01:44.9]} 18... g5 {[%clk 0:01:35.3]} 19. Qxd4+ {[%clk 0:01:44]}
19... Kg8 {[%clk 0:01:33.4]} 20. fxg5 {[%clk 0:01:43.4]} 20... hxg5 {[%clk
0:01:33.2]} 21. Bf2 {[%clk 0:01:43.1]} 21... Nf4 {[%clk 0:01:33]} 22. Qc3 {[%clk
0:01:41.1]} 22... Qd7 {[%clk 0:01:29.5]} 23. Qf6 {[%clk 0:01:33.4]} 23... Ne6
{[%clk 0:01:22.1]} 24. e5 {[%clk 0:01:27.9]} 24... Qe7 {[%clk 0:01:19.5]} 25.
Qxe7 {[%clk 0:01:27.4]} 25... Rxe7 {[%clk 0:01:19.1]} 26. exd6 {[%clk
0:01:26.9]} 26... cxd6 {[%clk 0:01:19.8]} 27. Bc4 {[%clk 0:01:17.5]} 27... Rc8
{[%clk 0:01:18.5]} 28. Bb3 {[%clk 0:01:15.9]} 28... Kg7 {[%clk 0:01:12.1]} 29.
Rad1 {[%clk 0:01:14.7]} 29... Rc6 {[%clk 0:01:10.8]} 30. Bg3 {[%clk 0:01:07.6]}
30... b5 {[%clk 0:00:56.8]} 31. Rxd6 {[%clk 0:01:06.4]} 31... Rxd6 {[%clk
0:00:47.5]} 32. Bxd6 {[%clk 0:01:05.7]} 32... Rd7 {[%clk 0:00:48.4]} 33. Bxe6
{[%clk 0:01:01.7]} 33... Rxd6 {[%clk 0:00:47.7]} 34. Bf5 {[%clk 0:00:58.1]}
34... Kf6 {[%clk 0:00:46.7]} 35. Bd3 {[%clk 0:00:57.6]} 35... Rc6 {[%clk
0:00:41.6]} 36. Kf2 {[%clk 0:00:56.9]} 36... b4 {[%clk 0:00:39.5]} 37. Re4
{[%clk 0:00:56.1]} 37... a5 {[%clk 0:00:38.6]} 38. Rc4 {[%clk 0:00:55.2]} 38...
Rd6 {[%clk 0:00:37.8]} 39. Rc5 {[%clk 0:00:54.9]} 39... a4 {[%clk 0:00:37.2]}
40. Rf5+ {[%clk 0:00:54.4]} 40... Ke7 {[%clk 0:00:36.2]} 41. Rxg5 {[%clk
0:00:53.9]} 41... b3 {[%clk 0:00:36.6]} 42. axb3 {[%clk 0:00:52.9]} 42... axb3
{[%clk 0:00:36.9]} 43. cxb3 {[%clk 0:00:50.7]} 43... Rxd3 {[%clk 0:00:36.9]} 44.
b4 {[%clk 0:00:50.7]} 44... Rb3 {[%clk 0:00:36.8]} 45. b5 {[%clk 0:00:50.6]}
45... Ke6 {[%clk 0:00:35.8]} 46. h4 {[%clk 0:00:49]} 46... f6 {[%clk 0:00:36.4]}
47. Rc5 {[%clk 0:00:44.9]} 47... Kd6 {[%clk 0:00:36.4]} 48. Rc6+ {[%clk
0:00:41.5]} 48... Ke5 {[%clk 0:00:36.6]} 49. b6 {[%clk 0:00:40.5]} 49... f5
{[%clk 0:00:33.6]} 50. h5 {[%clk 0:00:35.5]} 50... Kf4 {[%clk 0:00:33.8]} 51. h6
{[%clk 0:00:33.5]} 51... Rb2+ {[%clk 0:00:33.7]} 52. Kg1 {[%clk 0:00:32.2]}
52... Kg3 {[%clk 0:00:32.4]} 53. Rg6+ {[%clk 0:00:31.9]} 53... Kf4 {[%clk
0:00:22.7]} 54. h7 {[%clk 0:00:31.4]} 54... Ke3 {[%clk 0:00:21.5]} 55. h8=Q
{[%clk 0:00:30.1]} 55... Rxg2+ {[%clk 0:00:19.3]} 56. Kxg2 {[%clk 0:00:29.1]}
56... f4 {[%clk 0:00:18.5]} 57. Qe5+ {[%clk 0:00:28.1]} 57... Kd3 {[%clk
0:00:18]} 58. Rd6+ {[%clk 0:00:27.5]} 58... Kc4 {[%clk 0:00:17.4]} 59. Qxf4+
{[%clk 0:00:27]} 59... Kc5 {[%clk 0:00:17]} 60. Qe5+ {[%clk 0:00:27.1]} 60...
Kb4 {[%clk 0:00:16.6]} 61. Rd4+ {[%clk 0:00:27.4]} 61... Ka3 {[%clk 0:00:16]}
62. Qe3+ {[%clk 0:00:27.6]} 62... Ka2 {[%clk 0:00:14.9]} 63. Rd2+ {[%clk
0:00:27.5]} 1-0

[Event "*** SCC Grand Prix: Titled Tuesday Blitz"]
[Site "Chess.com"]
[Date "2020.07.21"]
[Round "9"]
[White "natelleka"]
[Black "maxip32"]
[Result "1-0"]
[WhiteElo "2180"]
[BlackElo "2412"]
[TimeControl "180+1"]
[EndTime "11:49:22 PDT"]
[Termination "natelleka won on time"]

1. d4 {[%clk 0:03:00.9]} 1... Nf6 {[%clk 0:02:59.5]} 2. Bf4 {[%clk 0:03:00.7]}
2... g6 {[%clk 0:02:59.4]} 3. e3 {[%clk 0:03:00.8]} 3... Bg7 {[%clk 0:03:00.3]}
4. Nf3 {[%clk 0:03:01.1]} 4... O-O {[%clk 0:03:01.2]} 5. Be2 {[%clk 0:03:01.6]}
5... d6 {[%clk 0:03:02.1]} 6. O-O {[%clk 0:03:01.1]} 6... Nbd7 {[%clk
0:02:57.1]} 7. h3 {[%clk 0:03:01.2]} 7... b6 {[%clk 0:02:57.6]} 8. a4 {[%clk
0:03:00.5]} 8... Bb7 {[%clk 0:02:58.5]} 9. a5 {[%clk 0:03:00.5]} 9... c5 {[%clk
0:02:57.3]} 10. c3 {[%clk 0:02:58.4]} 10... Qc7 {[%clk 0:02:48.7]} 11. Bh2
{[%clk 0:02:57.2]} 11... a6 {[%clk 0:02:37.8]} 12. axb6 {[%clk 0:02:55.6]} 12...
Qxb6 {[%clk 0:02:38.1]} 13. Nbd2 {[%clk 0:02:47.9]} 13... cxd4 {[%clk
0:02:32.8]} 14. Nc4 {[%clk 0:02:44.9]} 14... Qc7 {[%clk 0:02:31.3]} 15. exd4
{[%clk 0:02:41.5]} 15... Nb6 {[%clk 0:02:29.5]} 16. Qb3 {[%clk 0:02:23.4]} 16...
Nxc4 {[%clk 0:02:28.2]} 17. Bxc4 {[%clk 0:02:23.3]} 17... Bxf3 {[%clk
0:02:14.6]} 18. gxf3 {[%clk 0:02:22.9]} 18... Qc6 {[%clk 0:02:09.4]} 19. Kg2
{[%clk 0:02:16.2]} 19... Rfb8 {[%clk 0:01:53.6]} 20. Bxf7+ {[%clk 0:01:57.3]}
20... Kf8 {[%clk 0:01:52.9]} 21. Qa2 {[%clk 0:01:52.6]} 21... d5 {[%clk
0:01:45.8]} 22. Bxb8 {[%clk 0:01:50.9]} 22... Rxb8 {[%clk 0:01:46.6]} 23. Bxg6
{[%clk 0:01:25.3]} 23... hxg6 {[%clk 0:01:44.8]} 24. Qxa6 {[%clk 0:01:25.9]}
24... Qc7 {[%clk 0:01:24.1]} 25. Qa7 {[%clk 0:00:57.7]} 25... Rb7 {[%clk
0:01:06.3]} 26. Qa8+ {[%clk 0:00:56.4]} 26... Kf7 {[%clk 0:01:06.2]} 27. b4
{[%clk 0:00:52.8]} 27... Nh5 {[%clk 0:01:04.7]} 28. Rfe1 {[%clk 0:00:32.3]}
28... Nf4+ {[%clk 0:01:01.6]} 29. Kf1 {[%clk 0:00:23.6]} 29... Qd7 {[%clk
0:00:58.9]} 30. Re3 {[%clk 0:00:17.8]} 30... Qb5+ {[%clk 0:00:52.1]} 31. Ke1
{[%clk 0:00:17.4]} 31... Ng2+ {[%clk 0:00:49.9]} 32. Kd2 {[%clk 0:00:17.9]}
32... Nxe3 {[%clk 0:00:49.6]} 33. fxe3 {[%clk 0:00:18.5]} 33... Qd7 {[%clk
0:00:36.6]} 34. Ra5 {[%clk 0:00:15.6]} 34... e5 {[%clk 0:00:28.2]} 35. Rc5
{[%clk 0:00:12.2]} 35... exd4 {[%clk 0:00:27.1]} 36. exd4 {[%clk 0:00:12.8]}
36... Bh6+ {[%clk 0:00:24.3]} 37. Kc2 {[%clk 0:00:11.9]} 37... Kg7 {[%clk
0:00:17.4]} 38. Kb3 {[%clk 0:00:11.8]} 38... Ra7 {[%clk 0:00:16]} 39. Qxd5
{[%clk 0:00:09.8]} 39... Qa4+ {[%clk 0:00:16.1]} 40. Kc4 {[%clk 0:00:09.2]}
40... Qa2+ {[%clk 0:00:16.2]} 41. Kd3 {[%clk 0:00:09.3]} 41... Qb1+ {[%clk
0:00:14]} 42. Kc4 {[%clk 0:00:09.7]} 42... Qf1+ {[%clk 0:00:13]} 43. Kb3 {[%clk
0:00:07.8]} 43... Qd1+ {[%clk 0:00:08.5]} 44. Kc4 {[%clk 0:00:08.1]} 44... Qc2
{[%clk 0:00:01.7]} 45. Qe5+ {[%clk 0:00:05.7]} 45... Kh7 {[%clk 0:00:02]} 46.
Rc7+ {[%clk 0:00:04.7]} 46... Rxc7+ {[%clk 0:00:02.2]} 47. Qxc7+ {[%clk
0:00:05.6]} 47... Bg7 {[%clk 0:00:02.8]} 48. Qf4 {[%clk 0:00:04.6]} 48... Qe2+
{[%clk 0:00:01.8]} 49. Kd5 {[%clk 0:00:04.8]} 49... Qb5+ {[%clk 0:00:01.7]} 50.
Ke4 {[%clk 0:00:04.6]} 50... Qc4 {[%clk 0:00:01]} 51. Qe3 {[%clk 0:00:04.2]} 1-0

[Event "*** SCC Grand Prix: Titled Tuesday Blitz"]
[Site "Chess.com"]
[Date "2020.07.21"]
[Round "9"]
[White "TargetA"]
[Black "GukeshDommaraju"]
[Result "0-1"]
[WhiteElo "2575"]
[BlackElo "2723"]
[TimeControl "180+1"]
[EndTime "11:49:27 PDT"]
[Termination "GukeshDommaraju won on time"]

1. e4 {[%clk 0:02:48.4]} 1... c5 {[%clk 0:02:59.5]} 2. Nf3 {[%clk 0:02:48]} 2...
Nc6 {[%clk 0:02:59.6]} 3. Nc3 {[%clk 0:02:45.4]} 3... e5 {[%clk 0:02:59.1]} 4.
Bc4 {[%clk 0:02:44.7]} 4... Be7 {[%clk 0:02:59.2]} 5. d3 {[%clk 0:02:43.9]} 5...
d6 {[%clk 0:02:59.3]} 6. Nd2 {[%clk 0:02:43.2]} 6... Nf6 {[%clk 0:02:59.1]} 7.
Nf1 {[%clk 0:02:43.1]} 7... Nd7 {[%clk 0:02:59.4]} 8. Ne3 {[%clk 0:02:41]} 8...
Nb6 {[%clk 0:02:59.5]} 9. O-O {[%clk 0:02:38.5]} 9... O-O {[%clk 0:02:59.3]} 10.
a4 {[%clk 0:02:37.8]} 10... Bg5 {[%clk 0:02:43.1]} 11. Ned5 {[%clk 0:02:31.2]}
11... Bxc1 {[%clk 0:02:40.8]} 12. Rxc1 {[%clk 0:02:25]} 12... Be6 {[%clk
0:02:36.3]} 13. Ne3 {[%clk 0:02:13]} 13... Nd4 {[%clk 0:02:29.3]} 14. Ra1 {[%clk
0:02:08.9]} 14... g6 {[%clk 0:02:18.5]} 15. Ncd5 {[%clk 0:01:47.1]} 15... Nxc4
{[%clk 0:02:08.4]} 16. dxc4 {[%clk 0:01:47]} 16... f5 {[%clk 0:02:08.1]} 17. c3
{[%clk 0:01:42.7]} 17... Nc6 {[%clk 0:02:00.1]} 18. f3 {[%clk 0:01:39.9]} 18...
f4 {[%clk 0:01:58.5]} 19. Nc2 {[%clk 0:01:37.9]} 19... Ne7 {[%clk 0:01:44.2]}
20. Nxe7+ {[%clk 0:01:23.5]} 20... Qxe7 {[%clk 0:01:45.1]} 21. b3 {[%clk
0:01:19]} 21... g5 {[%clk 0:01:44.3]} 22. Qe2 {[%clk 0:01:12.8]} 22... h5 {[%clk
0:01:43.2]} 23. Rad1 {[%clk 0:00:57.6]} 23... Rad8 {[%clk 0:01:42.2]} 24. Rd3
{[%clk 0:00:55.8]} 24... g4 {[%clk 0:01:32.1]} 25. Rfd1 {[%clk 0:00:48]} 25...
Rf6 {[%clk 0:01:27.3]} 26. Qd2 {[%clk 0:00:45.2]} 26... Bc8 {[%clk 0:01:23.6]}
27. b4 {[%clk 0:00:43.2]} 27... b6 {[%clk 0:01:22.2]} 28. Na3 {[%clk 0:00:42.9]}
28... Rg6 {[%clk 0:01:03.2]} 29. Kh1 {[%clk 0:00:40.4]} 29... gxf3 {[%clk
0:00:49]} 30. gxf3 {[%clk 0:00:41.3]} 30... Bh3 {[%clk 0:00:48.6]} 31. Qf2
{[%clk 0:00:19.9]} 31... Kh7 {[%clk 0:00:35.4]} 32. Rg1 {[%clk 0:00:16.4]} 32...
Rxg1+ {[%clk 0:00:34.3]} 33. Qxg1 {[%clk 0:00:17]} 33... Rg8 {[%clk 0:00:34.3]}
34. Qf2 {[%clk 0:00:17.1]} 34... Bg2+ {[%clk 0:00:25.5]} 35. Qxg2 {[%clk
0:00:16.6]} 35... Rxg2 {[%clk 0:00:26.4]} 36. Kxg2 {[%clk 0:00:17.4]} 36... Qh4
{[%clk 0:00:19.1]} 37. Nc2 {[%clk 0:00:15.9]} 37... Qf6 {[%clk 0:00:17.7]} 38.
Na3 {[%clk 0:00:15.2]} 38... a6 {[%clk 0:00:17.7]} 39. a5 {[%clk 0:00:14.6]}
39... cxb4 {[%clk 0:00:15]} 40. cxb4 {[%clk 0:00:12.6]} 40... bxa5 {[%clk
0:00:15.3]} 41. bxa5 {[%clk 0:00:12.2]} 41... Qd8 {[%clk 0:00:12.9]} 42. c5
{[%clk 0:00:12.1]} 42... Qg8+ {[%clk 0:00:12.8]} 43. Kf2 {[%clk 0:00:11.4]}
43... dxc5 {[%clk 0:00:13.7]} 44. Ke2 {[%clk 0:00:11]} 44... Qa2+ {[%clk
0:00:13.2]} 45. Ke1 {[%clk 0:00:10.2]} 45... c4 {[%clk 0:00:13.5]} 46. Rc3
{[%clk 0:00:08.9]} 46... Qb2 {[%clk 0:00:13.6]} 47. Rxc4 {[%clk 0:00:07.6]}
47... Qxa3 {[%clk 0:00:13.7]} 48. Rc7+ {[%clk 0:00:07.7]} 48... Kg6 {[%clk
0:00:13.7]} 49. Rc6+ {[%clk 0:00:08.6]} 49... Kg5 {[%clk 0:00:13.9]} 50. Rxa6
{[%clk 0:00:08]} 50... Qe3+ {[%clk 0:00:13.9]} 0-1

[Event "*** SCC Grand Prix: Titled Tuesday Blitz"]
[Site "Chess.com"]
[Date "2020.07.21"]
[Round "9"]
[White "Rodalquilar"]
[Black "KyrgyzFighter"]
[Result "1-0"]
[WhiteElo "2667"]
[BlackElo "2351"]
[TimeControl "180+1"]
[EndTime "11:49:27 PDT"]
[Termination "Rodalquilar won by checkmate"]

1. d4 {[%clk 0:03:00.9]} 1... f5 {[%clk 0:02:59.7]} 2. g3 {[%clk 0:02:59.2]}
2... Nf6 {[%clk 0:02:59.8]} 3. Bg2 {[%clk 0:02:59.7]} 3... g6 {[%clk 0:03:00.2]}
4. Nf3 {[%clk 0:03:00.2]} 4... Bg7 {[%clk 0:03:00.6]} 5. O-O {[%clk 0:03:00.8]}
5... O-O {[%clk 0:03:01.1]} 6. Nbd2 {[%clk 0:03:01.4]} 6... d6 {[%clk
0:03:01.3]} 7. Re1 {[%clk 0:03:01.7]} 7... Nc6 {[%clk 0:03:00]} 8. e4 {[%clk
0:03:01.8]} 8... e5 {[%clk 0:03:00.4]} 9. dxe5 {[%clk 0:02:50.3]} 9... Nxe4
{[%clk 0:02:58.7]} 10. Nxe4 {[%clk 0:02:38.2]} 10... fxe4 {[%clk 0:02:57.6]} 11.
Bg5 {[%clk 0:02:27.7]} 11... Qd7 {[%clk 0:02:44.3]} 12. Qd5+ {[%clk 0:01:39.3]}
12... Qe6 {[%clk 0:02:40.4]} 13. Qxe4 {[%clk 0:01:30.8]} 13... dxe5 {[%clk
0:02:35.8]} 14. Be3 {[%clk 0:01:24.6]} 14... Qf5 {[%clk 0:02:28.2]} 15. Ng5
{[%clk 0:01:22.7]} 15... h6 {[%clk 0:02:17.4]} 16. Qxf5 {[%clk 0:01:11.3]} 16...
gxf5 {[%clk 0:02:11.1]} 17. Bd5+ {[%clk 0:01:08.8]} 17... Kh8 {[%clk 0:02:11.4]}
18. Ne6 {[%clk 0:01:01.4]} 18... Bxe6 {[%clk 0:02:10.9]} 19. Bxe6 {[%clk
0:01:02.3]} 19... f4 {[%clk 0:02:08.4]} 20. Bc5 {[%clk 0:00:59.7]} 20... Rf6
{[%clk 0:01:57.1]} 21. Bd5 {[%clk 0:00:57]} 21... Rd8 {[%clk 0:01:54.1]} 22. Be4
{[%clk 0:00:56.4]} 22... b6 {[%clk 0:01:44.7]} 23. Ba3 {[%clk 0:00:52.1]} 23...
fxg3 {[%clk 0:01:39.9]} 24. hxg3 {[%clk 0:00:52.2]} 24... Rd2 {[%clk 0:01:04.9]}
25. Rad1 {[%clk 0:00:52.1]} 25... Rxd1 {[%clk 0:01:05.2]} 26. Rxd1 {[%clk
0:00:52.4]} 26... Nd4 {[%clk 0:01:06.1]} 27. c3 {[%clk 0:00:33]} 27... Ne6
{[%clk 0:01:03.5]} 28. Rd7 {[%clk 0:00:28.1]} 28... c5 {[%clk 0:00:19]} 29. Rxa7
{[%clk 0:00:27.7]} 29... Ng5 {[%clk 0:00:19.3]} 30. Bd5 {[%clk 0:00:14.4]} 30...
Rd6 {[%clk 0:00:18.1]} 31. c4 {[%clk 0:00:13.8]} 31... e4 {[%clk 0:00:17.9]} 32.
Ra6 {[%clk 0:00:12.6]} 32... Bd4 {[%clk 0:00:17.2]} 33. Kg2 {[%clk 0:00:11]}
33... Kg7 {[%clk 0:00:16.6]} 34. b4 {[%clk 0:00:11.5]} 34... Rf6 {[%clk
0:00:12.8]} 35. bxc5 {[%clk 0:00:08.6]} 35... Rxf2+ {[%clk 0:00:12.9]} 36. Kh1
{[%clk 0:00:07]} 36... Nf3 {[%clk 0:00:12.5]} 37. Ra7+ {[%clk 0:00:05.5]} 37...
Kg6 {[%clk 0:00:12.9]} 38. Bxe4+ {[%clk 0:00:05.9]} 38... Kg5 {[%clk 0:00:12.3]}
39. Bxf3 {[%clk 0:00:06.3]} 39... Rxf3 {[%clk 0:00:12.9]} 40. c6 {[%clk
0:00:04.4]} 40... Rxg3 {[%clk 0:00:11.5]} 41. c7 {[%clk 0:00:04]} 41... Rg1+
{[%clk 0:00:04.1]} 42. Kh2 {[%clk 0:00:04.5]} 42... Rc1 {[%clk 0:00:03.6]} 43.
c8=Q {[%clk 0:00:04.9]} 43... Rc2+ {[%clk 0:00:04.5]} 44. Kh1 {[%clk 0:00:05.4]}
44... Rc1+ {[%clk 0:00:04.6]} 45. Kg2 {[%clk 0:00:05.9]} 45... Rc2+ {[%clk
0:00:04.6]} 46. Kf3 {[%clk 0:00:06.5]} 46... Rc3+ {[%clk 0:00:05]} 47. Ke4
{[%clk 0:00:07.1]} 47... Bf2 {[%clk 0:00:05.6]} 48. Qf5+ {[%clk 0:00:06.8]}
48... Kh4 {[%clk 0:00:05.7]} 49. Qxf2+ {[%clk 0:00:07.1]} 49... Kh3 {[%clk
0:00:06.1]} 50. Qf3+ {[%clk 0:00:07.5]} 50... Rxf3 {[%clk 0:00:05.8]} 51. Kxf3
{[%clk 0:00:08.4]} 51... h5 {[%clk 0:00:06.7]} 52. Rh7 {[%clk 0:00:08.4]} 52...
h4 {[%clk 0:00:07.6]} 53. Rh6 {[%clk 0:00:08.6]} 53... Kh2 {[%clk 0:00:07.4]}
54. Rxh4+ {[%clk 0:00:08.4]} 54... Kg1 {[%clk 0:00:08.3]} 55. Rh5 {[%clk
0:00:07.6]} 55... b5 {[%clk 0:00:08.3]} 56. cxb5 {[%clk 0:00:08.5]} 56... Kf1
{[%clk 0:00:08.4]} 57. Rh1# {[%clk 0:00:08.7]} 1-0